fUSD/lending_fUSD_20260322
["ID","MTS","AMOUNT","RATE_DAILY","PERIOD"]
[408716268,1774166763275,-483.48,0.000467,30]
[408716269,1774166763302,-814.934165,0.000469,52]
[408716270,1774166763333,-521.0,0.00047,31]
[408716271,1774166763484,-181.08010149,0.00047243,30]
[408716272,1774166763515,-335.18736541,0.00047243,31]
[408716273,1774166763545,-155.64142354,0.00047243,30]
[408716274,1774166763574,-1190.22,0.00047244,30]
[408716275,1774166763602,-174.61919141,0.00047799,75]
[408716276,1774166763631,-1191.11104075,0.00047799,75]
[408716277,1774166763660,-1148.61238259,0.00047999,60]
[408716278,1774166763689,-151.0,0.00047999,60]
[408716279,1774166763719,-1389515.73363653,0.00048,120]
[408716280,1774166763755,-5000000.0,0.00048,120]
[408716281,1774166763787,-598919.71069328,0.00048,120]
[408716282,1774166798517,-162.58175,0.00031123,30]
[408716283,1774166798589,-195.0995,0.00031129,30]
[408716284,1774166798656,-162.58175,0.00031133,30]
[408716285,1774166798724,-151.0,0.00034568,30]
[408716286,1774166798814,-151.0,0.00035568,30]
[408716287,1774166798905,-151.0,0.00036568,30]
[408716288,1774166798968,-151.0,0.00037568,30]
[408716289,1774166799037,-151.0,0.00038568,30]
[408716290,1774166799111,-151.0,0.00039568,30]
[408716291,1774166799187,-152.4,0.00040568,30]
[408716292,1774166799262,-497.15,0.00041817,30]
[408716293,1774166799340,-497.15,0.0004398,30]
[408716294,1774166799412,-5122.38288614,0.00046,60]
[408716295,1774166799485,-497.15,0.00046143,30]
[408716296,1774166799555,-600.0,0.00046356,120]
[408716297,1774166799644,-48481.711487,0.00047085,43]
[408716298,1774166799713,-327.2499461,0.00047135,120]
[408716299,1774166799783,-151.0,0.00047136,120]
[408716300,1774166799959,-531.59586584,0.00047272,60]
[408716301,1774166800024,-531.59586584,0.00047272,60]
[408716302,1774166800092,-531.59586584,0.00047272,60]
[408716303,1774166800153,-531.59586584,0.00047272,60]
[408716304,1774166800219,-531.59586584,0.00047272,60]
[408716305,1774166800286,-531.59586584,0.00047409,60]
[408716306,1774166800350,-531.59586584,0.00047409,60]
[408716307,1774166800415,-531.59586584,0.00047409,60]
[408716308,1774166800479,-531.59586584,0.00047409,60]
[408716309,1774166800544,-531.59586584,0.00047409,60]
[408716310,1774166800612,-250.0,0.00047999,120]
[408716311,1774166800679,-6888.0,0.00047999,120]
[408716312,1774166800747,-250.0,0.00047999,120]
[408716313,1774166800818,-7142.856,0.00047999,120]
[408716314,1774166800889,-7407.141672,0.00047999,120]
[408716315,1774166800958,-500.0,0.00047999,120]
[408716316,1774166801027,-250.0,0.00047999,120]
[408716317,1774166801098,-500.0,0.00047999,120]
[408716318,1774166801168,-250.0,0.00047999,120]
[408716319,1774166801236,-151.0,0.00047999,120]
[408716320,1774166801307,-250.0,0.00047999,120]
[408716321,1774166801378,-500.0,0.00047999,120]
[408716322,1774166801445,-7681.20591386,0.00047999,120]
[408716323,1774166801511,-500.0,0.00047999,120]
[408716324,1774166801588,-151.0,0.00047999,120]
[408716325,1774166801659,-151.0,0.00047999,120]
[408716326,1774166801728,-250.0,0.00047999,120]
[408716327,1774166801800,-500.0,0.00047999,120]
[408716328,1774166801873,-1201.48260094,0.00047999,120]
[408716329,1774166801938,-520.0,0.00047999,120]
[408716330,1774166802004,-500.0,0.00047999,120]
[408716331,1774166802070,-151.0,0.00047999,120]
[408716332,1774166802138,-151.0,0.00047999,120]
[408716333,1774166802208,-250.0,0.00047999,120]
[408716334,1774166802278,-539.24,0.00047999,120]
[408716335,1774166802350,-500.0,0.00047999,120]
[408716336,1774166802421,-151.0,0.00047999,120]
[408716337,1774166802495,-250.0,0.00047999,120]
[408716338,1774166802567,-559.19188,0.00047999,120]
[408716339,1774166802640,-500.0,0.00047999,120]
[408716340,1774166802710,-151.0,0.00047999,120]
[408716341,1774166802784,-156.587,0.00047999,120]
[408716342,1774166802858,-500.0,0.00047999,120]
[408716343,1774166802927,-170.0,0.00047999,120]
[408716344,1774166802998,-162.380719,0.00047999,120]
[408716345,1774166803069,-500.0,0.00047999,120]
[408716346,1774166803140,-182.99335419,0.00047999,120]
[408716347,1774166803206,-500.0,0.00047999,120]
[408716348,1774166803280,-500.0,0.00047999,120]
[408716349,1774166803343,-192.5223812,0.00047999,120]
[408716350,1774166803411,-500.0,0.00047999,120]
[408716351,1774166803486,-500.0,0.00047999,120]
[408716352,1774166803557,-500.0,0.00047999,120]
[408716353,1774166803637,-500.0,0.00047999,120]
[408716354,1774166803719,-500.0,0.00047999,120]
[408716355,1774166803800,-500.0,0.00047999,120]
[408716356,1774166803870,-267.45885367,0.00047999,120]
[408716357,1774166803938,-500.0,0.00047999,120]
[408716358,1774166804007,-151.0,0.00047999,120]
[408716359,1774166804079,-500.0,0.00047999,120]
[408716360,1774166804149,-500.0,0.00047999,120]
[408716361,1774166804217,-250.0,0.00047999,120]
[408716362,1774166804285,-151.0,0.00047999,120]
[408716363,1774166804357,-500.0,0.00047999,120]
[408716364,1774166804424,-250.0,0.00047999,120]
[408716365,1774166804497,-747.91824642,0.00047999,120]
[408716366,1774166804563,-500.0,0.00047999,120]
[408716367,1774166804625,-250.0,0.00047999,120]
[408716368,1774166804689,-500.0,0.00047999,120]
[408716369,1774166804761,-250.0,0.00047999,120]
[408716370,1774166804830,-151.0,0.00047999,120]
[408716371,1774166805100,-151.0,0.00047999,120]
[408716372,1774166805167,-152.99458641,0.00047999,120]
[408716373,1774166805229,-151.0,0.00047999,120]
[408716374,1774166805298,-601.42390165,0.00047999,120]
[408716375,1774166805363,-215.2004352,0.00047999,120]
[408716376,1774166805427,-500.0,0.00047999,120]
[408716377,1774166805492,-500.0,0.00047999,120]
[408716378,1774166805559,-500.0,0.00047999,120]
[408716379,1774166805625,-250.0,0.00047999,120]
[408716380,1774166805688,-500.0,0.00047999,120]
[408716381,1774166805749,-500.0,0.00047999,120]
[408716382,1774166805813,-250.0,0.00047999,120]
[408716383,1774166805880,-500.0,0.00047999,120]
[408716384,1774166805946,-500.0,0.00047999,120]
[408716385,1774166806013,-250.0,0.00047999,120]
[408716386,1774166806084,-500.0,0.00047999,120]
[408716387,1774166806147,-250.0,0.00047999,120]
[408716388,1774166806211,-500.0,0.00047999,120]
[408716389,1774166806272,-500.0,0.00047999,120]
[408716390,1774166806338,-500.0,0.00047999,120]
[408716391,1774166806411,-588.29991722,0.00047999,120]
[408716392,1774166806479,-1030.0,0.00047999,120]
[408716393,1774166806544,-9588.12287785,0.00047999,120]
[408716394,1774166806613,-1068.11,0.00047999,120]
[408716395,1774166806678,-1107.63007,0.00047999,120]
[408716396,1774166806741,-200.0,0.00047999,120]
[408716397,1774166806806,-200.0,0.00047999,120]
[408716398,1774166806869,-151.0,0.00047999,120]
[408716399,1774166806930,-151.0,0.00047999,120]
[408716400,1774166806997,-151.0,0.00047999,120]
[408716401,1774166807058,-500.0,0.00047999,120]
[408716402,1774166807124,-4000.0,0.00047999,120]
[408716403,1774166807190,-500.0,0.00047999,120]
[408716404,1774166807259,-4148.0,0.00047999,120]
[408716405,1774166807326,-500.0,0.00047999,120]
[408716406,1774166807392,-4301.476,0.00047999,120]
[408716407,1774166807463,-4401080.28930672,0.00048,120]
[408716408,1774166807534,-3449566.05830603,0.00048,120]
[408716409,1774166845982,3658.36,0.00012079,2]
[408716410,1774166952218,166.66,0.00012418,2]
[408716417,1774167031445,-4615.83315592,0.00012474,2]
[408716418,1774167031481,-250.0,0.00012476,2]
[408716419,1774167031511,-1200.0,0.00012478,2]
[408716420,1774167031528,-300.0,0.00012479,2]
[408716421,1774167031546,-35150.98027318,0.0001248,2]
[408716422,1774167031562,-500.0,0.000125,4]
[408716423,1774167031580,-1000.0,0.000126,4]
[408716424,1774167031597,-1500.0,0.000127,4]
[408716425,1774167031613,-271.93905511,0.000128,2]
[408716426,1774167031634,-470.40662882,0.000128,2]
[408716427,1774167031650,-2100.0,0.000128,4]
[408716428,1774167031666,-200.0,0.000128,4]
[408716429,1774167031686,-200.0,0.000128,4]
[408716430,1774167031697,-166.66,0.00012828,2]
[408716431,1774167031707,-150.0,0.00012868,2]
[408716432,1774167031716,-153.51616239,0.00012869,2]
[408716434,1774167031726,-2474.006,0.00012869,2]
[408716436,1774167031743,-176.406,0.00012869,2]
[408716438,1774167031753,-17743.9109,0.00012869,2]
[408716439,1774167031763,-2500.0,0.00012869,2]
[408716441,1774167031795,-2381.8674,0.00012869,2]
[408716442,1774167031820,-12946.84046409,0.0001287,2]
[408716443,1774167031848,-354.36130468,0.0001287,2]
[408716444,1774167031862,-501.01870448,0.00012873,2]
[408716445,1774167031877,-500.0,0.00012873,2]
[408716446,1774167031888,-500.0,0.00012873,2]
[408716447,1774167031904,-2600.0,0.000129,4]
[408716448,1774167031916,-500.0,0.000129,4]
[408716449,1774167031926,-400.0,0.000129,4]
[408716450,1774167031935,-186.33877404,0.00012959,2]
[408716451,1774167031945,-500.0,0.00012968,2]
[408716452,1774167031954,-500.0,0.00012968,2]
[408716453,1774167031964,-336.87862062,0.00012968,2]
[408716454,1774167031974,-500.0,0.00012968,2]
[408716455,1774167031983,-500.0,0.00012968,2]
[408716456,1774167031993,-500.0,0.00012968,2]
[408716457,1774167032003,-500.0,0.00012968,2]
[408716458,1774167032012,-500.0,0.00012968,2]
[408716459,1774167032021,-500.0,0.00012968,2]
[408716460,1774167032031,-446.08842436,0.00012968,2]
[408716461,1774167032041,-500.0,0.00012968,2]
[408716462,1774167032051,-500.0,0.00012968,2]
[408716463,1774167032061,-500.0,0.00012968,2]
[408716464,1774167032074,-500.0,0.00012968,2]
[408716465,1774167032084,-500.0,0.00012968,2]
[408716466,1774167032094,-500.0,0.00012968,2]
[408716467,1774167032104,-169.74366958,0.00012968,2]
[408716468,1774167032116,-500.0,0.00012968,2]
[408716469,1774167032126,-500.0,0.00012968,2]
[408716470,1774167032135,-500.0,0.00012968,2]
[408716471,1774167032143,-500.0,0.00012968,2]
[408716472,1774167032154,-198.99192553,0.00012968,2]
[408716473,1774167032163,-1313.58911789,0.00012969,3]
[408716474,1774167032172,-92141.64450451,0.00012969,2]
[408716475,1774167032185,-10623.83815119,0.00012969,2]
[408716476,1774167032197,-789.06159669,0.00012969,2]
[408716477,1774167032209,-4447.10351561,0.00012969,2]
[408716478,1774167032288,-881.86849656,0.00012969,2]
[408716485,1774167038177,-2028.41590575,0.00012969,2]
[408716486,1774167038189,-2472.09349095,0.00012969,2]
[408716487,1774167038200,-3282.94166574,0.00012969,2]
[408716488,1774167038211,-1950.71906743,0.00012969,2]
[408716489,1774167038221,-2643.40625538,0.00012969,2]
[408716490,1774167038232,-514.90133109,0.00012969,2]
[408716491,1774167038258,-766.39805676,0.00012969,2]
[408716502,1774167039861,-1377457.60796234,0.00012969,2]
[408716503,1774167039872,-500.0,0.0001297,2]
[408716504,1774167039882,-297.77539286,0.00012972,2]
[408716505,1774167039893,-585.66434156,0.00012972,2]
[408716506,1774167039902,-258.09326939,0.00012972,2]
[408716507,1774167039912,-434.22766833,0.00012972,2]
[408716508,1774167039921,-500.0,0.00012973,2]
[408716509,1774167039931,-500.0,0.00012973,2]
[408716510,1774167039940,-502.62691089,0.00012973,2]
[408716511,1774167039950,-500.0,0.00012973,2]
[408716512,1774167039960,-501.09015943,0.00012973,2]
[408716513,1774167039969,-504.75807369,0.00012973,2]
[408716514,1774167039978,-501.94992362,0.00012973,2]
[408716515,1774167040181,-500.0,0.00012973,2]
[408716516,1774167040191,-2572.22,0.00013003,2]
[408716517,1774167040200,-775.0,0.00013049,2]
[408716518,1774167040210,-1000.0,0.0001307,2]
[408716519,1774167040219,-150.0,0.00013104,2]
[408716520,1774167040228,-1116.80340637,0.00013114,2]
[408716521,1774167040241,-166.66,0.00013238,2]
[408716522,1774167040251,-500.0,0.00013244,2]
[408716523,1774167040260,-1003.65069447,0.00013421,2]
[408716524,1774167040270,-273.30088535,0.00013421,2]
[408716525,1774167040279,-237.6846,0.000135,2]
[408716526,1774167040288,-500.0,0.00013518,2]
[408716527,1774167040297,-379.18468401,0.00013521,2]
[408716528,1774167040306,-1000.0,0.00013521,2]
[408716529,1774167040315,-504.04980998,0.00013521,2]
[408716530,1774167040324,-150.0,0.000136,2]
[408716531,1774167040333,-166.66,0.00013648,2]
[408716532,1774167040343,-500.0,0.00013698,2]
[408716533,1774167040352,-500.0,0.00013698,2]
[408716534,1774167040361,-500.0,0.00013698,2]
[408716535,1774167040371,-500.0,0.00013698,2]
[408716536,1774167040380,-500.0,0.00013698,2]
[408716538,1774167040392,-500.0,0.00013698,2]
[408716539,1774167040402,-500.0,0.00013698,2]
[408716540,1774167040411,-500.0,0.00013698,2]
[408716541,1774167040420,-500.0,0.00013698,2]
[408716542,1774167040430,-500.0,0.00013698,2]
[408716543,1774167040439,-500.0,0.00013698,2]
[408716544,1774167040448,-194.24175417,0.00013698,2]
[408716545,1774167040458,-500.0,0.00013698,2]
[408716546,1774167040467,-500.0,0.00013698,2]
[408716547,1774167040476,-500.0,0.00013698,2]
[408716548,1774167040484,-500.0,0.00013698,2]
[408716549,1774167040493,-500.0,0.00013698,2]
[408716550,1774167040502,-258.16528091,0.00013698,2]
[408716551,1774167040510,-500.0,0.00013698,2]
[408716552,1774167040520,-500.0,0.00013698,2]
[408716553,1774167040530,-500.0,0.00013698,2]
[408716554,1774167040539,-500.0,0.00013698,2]
[408716555,1774167040548,-500.0,0.00013698,2]
[408716556,1774167040558,-500.0,0.00013698,2]
[408716557,1774167040567,-500.0,0.00013698,2]
[408716558,1774167040576,-497.15,0.00013699,2]
[408716559,1774167040585,-9999.99,0.00013699,2]
[408716560,1774167040595,-6785.67,0.00013699,2]
[408716561,1774167040604,-9350.46,0.00013699,2]
[408716562,1774167040614,-299.99,0.00013699,2]
[408716563,1774167040623,-150.99,0.00013699,2]
[408716564,1774167040633,-6780.55,0.00013699,2]
[408716565,1774167040643,-9999.99,0.00013699,2]
[408716566,1774167040652,-999.99,0.00013699,2]
[408716567,1774167040661,-14090.08,0.00013699,2]
[408716568,1774167040670,-150.99,0.00013699,2]
[408716569,1774167040679,-1568.76,0.00013699,2]
[408716570,1774167040688,-500.44177829,0.00013699,2]
[408716571,1774167040698,-500.0,0.00013699,2]
[408716572,1774167040707,-500.0,0.00013699,2]
[408716573,1774167040716,-500.0,0.00013699,2]
[408716574,1774167040725,-390.12270077,0.00013699,2]
[408716575,1774167040735,-1209.03,0.00013699,2]
[408716576,1774167040744,-6635.75,0.00013699,2]
[408716577,1774167040753,-10903.52,0.00013699,2]
[408716578,1774167040763,-323.15693905,0.00013699,2]
[408716579,1774167040772,-423.14,0.000137,2]
[408716580,1774167040782,-686.54,0.000137,2]
[408716581,1774167040791,-660.88,0.000137,2]
[408716582,1774167040800,-471.73,0.000137,2]
[408716583,1774167040809,-250.0,0.00013719,2]
[408716584,1774167040818,-2500.0,0.00013719,2]
[408716585,1774167040828,-600.0,0.00013719,2]
[408716586,1774167040837,-500.0,0.00013719,2]
[408716587,1774167040847,-500.0,0.00013719,2]
[408716588,1774167040857,-500.0,0.00013719,2]
[408716589,1774167040866,-500.0,0.00013719,2]
[408716590,1774167040875,-500.0,0.00013719,2]
[408716591,1774167040884,-300.0,0.00013719,2]
[408716592,1774167040894,-300.0,0.00013719,2]
[408716593,1774167040903,-195.0,0.00013719,2]
[408716594,1774167040912,-195.0,0.00013719,2]
[408716595,1774167040921,-195.0,0.00013719,2]
[408716596,1774167040930,-195.0,0.00013719,2]
[408716597,1774167040940,-274.8699727,0.00013719,2]
[408716598,1774167040949,-600.0,0.00013719,2]
[408716599,1774167040958,-600.0,0.00013719,2]
[408716600,1774167040967,-600.0,0.00013719,2]
[408716601,1774167040976,-600.0,0.00013719,2]
[408716602,1774167040985,-250.0,0.00013719,2]
[408716603,1774167040995,-300.0,0.00013719,2]
[408716604,1774167041007,-300.0,0.00013719,2]
[408716605,1774167041016,-5000.0,0.00013719,2]
[408716606,1774167041026,-300.0,0.00013719,2]
[408716607,1774167041035,-289.8006139,0.00013721,2]
[408716608,1774167041045,-1680.0,0.00013726,2]
[408716609,1774167041054,-256.86603976,0.00013792,2]
[408716610,1774167041064,-800.0,0.000139,5]
[408716611,1774167041073,-600.0,0.000139,5]
[408716612,1774167041083,-255.0,0.00013975,2]
[408716613,1774167041092,-521.0,0.00014,2]
[408716614,1774167041101,-521.0,0.00014,2]
[408716615,1774167041115,-166.66,0.00014058,2]
[408716616,1774167041125,-501.4021552,0.00014247,2]
[408716617,1774167041134,-1000.0,0.00014247,2]
[408716618,1774167041144,-1000.0,0.00014247,2]
[408716619,1774167041154,-12946.84046404,0.00014306,2]
[408716620,1774167041163,-194.73,0.00014399,2]
[408716621,1774167041173,-166.66,0.00014468,2]
[408716622,1774167041184,-698.79,0.000145,2]
[408716623,1774167041193,-1568.0,0.000147,2]
[408716624,1774167041203,-250.0,0.00015,2]
[408716625,1774167041212,-268.67,0.00015068,2]
[408716626,1774167041221,-170.61,0.00015092,2]
[408716627,1774167041231,-2351.0,0.00015098,2]
[408716628,1774167041240,-433.0,0.00015171,2]
[408716629,1774167041249,-4000.0,0.00015507,2]
[408716630,1774167041259,-500.0,0.00015638,2]
[408716631,1774167041268,-12946.84046404,0.00015741,2]
[408716632,1774167041278,-5369.28,0.00015751,2]
[408716633,1774167041287,-497.15,0.00015862,2]
[408716634,1774167041296,-4000.0,0.00015895,2]
[408716635,1774167041306,-773.0,0.00015941,2]
[408716636,1774167041316,-168.0,0.00015956,2]
[408716637,1774167041326,-773.0,0.00015989,2]
[408716638,1774167041335,-773.0,0.00015992,2]
[408716639,1774167041345,-773.0,0.00016,2]
[408716640,1774167041354,-773.0,0.00016004,2]
[408716641,1774167041364,-773.0,0.00016061,2]
[408716642,1774167041374,-9999.99,0.00016116,2]
[408716643,1774167041384,-773.0,0.00016121,2]
[408716644,1774167041394,-655.4067427,0.00016186,2]
[408716645,1774167041403,-979.16666667,0.00016193,2]
[408716646,1774167041413,-773.0,0.00016239,2]
[408716647,1774167041422,-773.0,0.00016277,2]
[408716648,1774167041431,-4000.0,0.00016282,2]
[408716649,1774167041441,-773.0,0.00016294,2]
[408716650,1774167041450,-2403.0,0.00016315,2]
[408716651,1774167041460,-164.89346,0.00016326,7]
[408716652,1774167041469,-160.0,0.00016336,7]
[408716653,1774167041479,-170.61,0.00016349,2]
[408716654,1774167041488,-258.54206,0.00016357,7]
[408716655,1774167041498,-471.73,0.000164,2]
[408716656,1774167041507,-247.340192,0.00016427,7]
[408716657,1774167041516,-268.67,0.00016438,2]
[408716658,1774167041526,-250.0,0.0001648,2]
[408716659,1774167041535,-736.0,0.00016484,2]
[408716660,1774167041544,-423.14,0.000165,2]
[408716661,1774167041554,-686.54,0.000165,2]
[408716662,1774167041563,-660.88,0.000165,2]
[408716663,1774167041572,-3292.0,0.00016608,2]
[408716664,1774167041581,-773.0,0.00016659,2]
[408716665,1774167041590,-4000.0,0.0001667,2]
[408716666,1774167041599,-773.0,0.0001669,2]
[408716667,1774167041608,-773.0,0.00016703,2]
[408716668,1774167041617,-773.0,0.00016712,2]
[408716669,1774167041627,-166.81,0.00016712,2]
[408716670,1774167041636,-773.0,0.00016762,2]
[408716671,1774167041646,-773.0,0.00016796,2]
[408716672,1774167041655,-150.0,0.0001683,14]
[408716673,1774167041664,-773.0,0.00016926,2]
[408716674,1774167041675,-160.0,0.00016935,2]
[408716675,1774167041685,-773.0,0.00016988,2]
[408716676,1774167041695,-300.0,0.00017,2]
[408716677,1774167041704,-4000.0,0.00017058,2]
[408716678,1774167041713,-773.0,0.00017075,2]
[408716679,1774167041723,-773.0,0.00017076,2]
[408716680,1774167041733,-500.0,0.00017143,2]
[408716681,1774167041742,-347.47666717,0.00017143,2]
[408716682,1774167041752,-12946.84046404,0.00017177,2]
[408716683,1774167041762,-773.0,0.00017218,2]
[408716684,1774167041775,-500.0,0.00017233,2]
[408716685,1774167041785,-7949.41,0.00017279,2]
[408716686,1774167041794,-773.0,0.00017376,2]
[408716687,1774167041804,-168.0,0.00017384,2]
[408716688,1774167041814,-773.0,0.00017387,2]
[408716689,1774167041823,-500.0,0.00017494,2]
[408716690,1774167041834,-500.0,0.00017505,2]
[408716691,1774167041843,-170.61,0.00017607,2]
[408716692,1774167041852,-1000.0,0.00017691,2]
[408716693,1774167041862,-500.55967201,0.00017757,2]
[408716694,1774167041871,-500.0,0.00017757,2]
[408716695,1774167041883,-500.0,0.00017757,2]
[408716696,1774167041895,-500.70382414,0.00017757,2]
[408716697,1774167041910,-500.0,0.00017757,2]
[408716698,1774167041922,-500.74920901,0.00017757,2]
[408716699,1774167041935,-500.0,0.00017757,2]
[408716700,1774167041946,-500.43058459,0.00017757,2]
[408716701,1774167041956,-500.4848322,0.00017757,2]
[408716702,1774167041969,-1000.0,0.00017781,2]
[408716703,1774167041981,-2403.0,0.00017782,2]
[408716704,1774167041994,-1252.0,0.00017899,2]
[408716705,1774167042006,-497.15,0.00018024,2]
[408716706,1774167042019,-1000.0,0.00018042,2]
[408716707,1774167042031,-1001.53007131,0.00018053,2]
[408716708,1774167042044,-1500.0,0.00018239,2]
[408716709,1774167042055,-4609.0,0.00018269,2]
[408716710,1774167042067,-713.64434561,0.00018305,2]
[408716711,1774167042079,-1000.0,0.00018305,2]
[408716712,1774167042090,-1000.0,0.00018305,2]
[408716713,1774167042101,-222.68518983,0.00018329,2]
[408716714,1774167042117,-1261.0,0.00018392,2]
[408716715,1774167042129,-152.1689,0.000184,2]
[408716716,1774167042141,-2403.0,0.00018405,2]
[408716717,1774167042154,-1215.0,0.00018409,2]
[408716718,1774167042167,-924.0,0.00018409,2]
[408716719,1774167042179,-6008.0,0.00018409,2]
[408716720,1774167042191,-416.351,0.00018409,2]
[408716721,1774167042204,-3240.0,0.00018461,2]
[408716722,1774167042217,-2000.0,0.00018464,2]
[408716723,1774167042230,-354.36130468,0.00018565,2]
[408716724,1774167042243,-759.99072283,0.0001859,2]
[408716725,1774167042255,-423.14,0.000186,2]
[408716727,1774167042269,-686.54,0.000186,2]
[408716728,1774167042281,-12946.84046404,0.00018612,2]
[408716731,1774167042293,-660.88,0.000187,2]
[408716734,1774167042306,-471.73,0.000187,2]
[408716736,1774167042317,-150.0,0.00018762,2]
[408716737,1774167042331,-150.114,0.00018762,2]
[408716738,1774167042342,-150.0,0.00018762,2]
[408716739,1774167042354,-1345.0,0.00018762,2]
[408716740,1774167042367,-3514.0,0.00018762,2]
[408716741,1774167042379,-1044.0,0.00018762,2]
[408716742,1774167042393,-150.0,0.00018762,2]
[408716743,1774167042405,-308.47240642,0.000188,2]
[408716744,1774167042417,-1500.0,0.00018853,2]
[408716745,1774167042430,-170.61,0.00018865,2]
[408716746,1774167042441,-1696.0,0.00019444,2]
[408716747,1774167042453,-37118.03,0.000196,2]
[408716748,1774167042463,-2403.0,0.0001984,2]
[408716749,1774167042474,-200.0,0.0002,10]
[408716750,1774167042486,-322.049604,0.0002,2]
[408716751,1774167042500,-12946.84046404,0.00020048,2]
[408716752,1774167042514,-194.73,0.00020084,2]
[408716755,1774167042529,-5782.0,0.00020096,2]
[408716759,1774167042541,-300.0,0.000201,10]
[408716762,1774167042552,-170.61,0.00020122,2]
[408716763,1774167042562,-497.15,0.00020187,2]
[408716764,1774167042572,-442.75,0.00020454,2]
[408716765,1774167042584,-150.0,0.00020562,2]
[408716766,1774167042596,-776.61029799,0.00020562,2]
[408716767,1774167042609,-150.0,0.00020562,2]
[408716768,1774167042622,-482.20073194,0.00020562,2]
[408716769,1774167042634,-2000.0,0.00020772,2]
[408716770,1774167042646,-927.0,0.00020848,10]
[408716771,1774167042657,-365.0,0.00020848,10]
[408716772,1774167042668,-239.0,0.0002087,2]
[408716773,1774167042679,-170.61,0.0002138,2]
[408716774,1774167042690,-986.372,0.00021392,2]
[408716775,1774167042702,-6008.0,0.00021409,2]
[408716776,1774167042713,-415.0,0.00021409,2]
[408716777,1774167042726,-12946.84046404,0.00021483,2]
[408716778,1774167042739,-150.0,0.00021762,2]
[408716779,1774167042750,-150.0,0.00021762,2]
[408716780,1774167042762,-150.0,0.00021762,2]
[408716781,1774167042773,-1345.0,0.00021762,2]
[408716782,1774167042784,-3514.0,0.00021762,2]
[408716783,1774167042796,-1044.0,0.00021762,2]
[408716784,1774167042807,-186.636452,0.00021906,2]
[408716785,1774167042819,-1000.0,0.00021918,2]
[408716786,1774167042832,-1000.0,0.00021918,2]
[408716787,1774167042843,-1000.0,0.00021918,2]
[408716788,1774167042854,-1000.0,0.00021918,2]
[408716789,1774167042867,-1000.0,0.00021918,2]
[408716790,1774167042878,-1000.0,0.00021918,2]
[408716791,1774167042889,-1000.0,0.00021918,2]
[408716792,1774167042901,-1000.0,0.00021918,2]
[408716793,1774167042912,-924.80475936,0.00022,2]
[408716794,1774167042924,-423.14,0.00022,7]
[408716795,1774167042935,-686.54,0.00022,7]
[408716796,1774167042947,-177.54,0.00022,30]
[408716797,1774167042959,-202.985,0.00022021,30]
[408716798,1774167042971,-497.15,0.0002235,2]
[408716799,1774167042982,-660.88,0.000224,7]
[408716800,1774167042994,-780.0,0.00022493,2]
[408716801,1774167043005,-471.73,0.000225,7]
[408716802,1774167043017,-202.985,0.00022569,30]
[408716803,1774167043028,-170.61,0.00022638,2]
[408716804,1774167043040,-500.0,0.0002274,2]
[408716805,1774167043051,-161.0,0.00022813,3]
[408716806,1774167043062,-154.38343801,0.00022859,2]
[408716807,1774167043074,-12946.84046404,0.00022919,2]